Cogmind - Beta 14 @@@ ROGUE MODE // 2024.09.08 @ 22:29:49 Player: Zaros426 Result: Destroyed by S-27 Virus with Autogun Performance ------------- Evolutions (5) 2500 Regions Visited (18) 3600 Robots Destroyed (257) 1285 Value Destroyed (11145) 11145 Prototype IDs (58) 1160 Alien Tech Used (0) 0 Bonus (7587) 7587 TOTAL SCORE: 27277 Bonus ------- High Alert Combat Kills 1437 Follower Combat Kills 3046 Entered Garrisons 600 Used RIF Installer 1500 Network Hubs Disabled 200 Aligned with FarCom 300 Built Enhanced Grunts 300 A7 Reached Mainframe 300 Met R17 at Cetus 500 Friendly Fire -596 Cogmind --------- Core Integrity 0/1000 Matter 98/300 Energy 26/100 System Corruption 6% Temperature Cool (2) Movement Flying (34) Location -5/Factory Parts ------- > --- POWER (2) -------- (None) > --- PROPULSION (4) --- VTOL Module Nuclear Pulse Array > --- UTILITY (6) ------ Improved Sensor Array Advanced Signal Interpreter Relay Coupler [NC] (21) > --- WEAPON (5) ------- Improved Remote Datajack > --- INVENTORY (5) ---- Experimental Phase Shifter Relay Coupler [Sentry] (19) Skeleton Box Peak State ------------ > --- POWER ------------ Antimatter Reactor > --- PROPULSION ------- Heavy Siege Treads Centrium Heavy Treads > --- UTILITY ---------- Experimental Heat Sink Huge Storage Unit Centrium Medium Armor Plating Centrium Medium Armor Plating Advanced Hardlight Generator > --- WEAPON ----------- Coil Gun XL Autogun Array > --- INVENTORY -------- Antimatter Reactor Quantum Reactor Centrium Heavy Treads Improved Cooling System High-capacity Matter Pod Experimental Phase Shifter Hardened Heavy Armor Plating Centrium Medium Armor Plating Improved Remote Force Field Improved Hacking Suite Skeleton Box Dynamic Insulation System High-powered Tractor Beam Drone Bay Advanced Variable Charge Gun YOLO Cannon Heavy Gauss Cannon Remote Datajack Plasma Cutter Heavy Mace [Rating: 127] Favorites ----------- Power Improved Ion Engine Engine Improved Ion Engine Power Core Micro Nuclear Core Reactor Antimatter Reactor Propulsion Light Treads Treads Light Treads Leg Flexi-carbon Leg Wheel Compact Wheel Hover Unit Gravmag System Flight Unit Cesium-ion Thruster Utility Huge Storage Unit Device Hardlight Generator Storage Huge Storage Unit Processor Experimental Targeting Computer Hackware Relay Coupler [NC] Protection Improved Medium Armor Plating Weapon Minigun Energy Gun EM Pulse Gun Energy Cannon YOLO Cannon Ballistic Gun Minigun Ballistic Cannon Heavy Gauss Cannon Special Weapon Remote Datajack Impact Weapon Heavy Mace Special Melee Weapon Datajack Build | -11 -10 -10 -10 -9 -8 -8 -7 -7 -7 -7 -6 -6 -6 -6 -6 -6 -6 -5 ------- Run | Yrd Mat Min Exi Min Mat Gar Fac Gar Fac Gar Fac Was Fac Ext Cet Arc Hub Fac Slots Evolved 10 | . . . . . 4 . 2 . . . 2 . . . . . . 2 Power 1 | . . . . . . . . . . . . . . . . . . 1 Propulsion 2 | . . . . . 1 . . . . . 1 . . . . . . . Utility 4 | . . . . . 1 . 1 . . . 1 . . . . . . 1 Weapon 3 | . . . . . 2 . 1 . . . . . . . . . . . Parts Attached 330 | 7 14 10 5 1 36 9 25 17 14 35 14 4 12 21 11 4 52 39 Power 17 | 1 2 . . . 1 . . 2 1 2 . . . . . . 3 5 Engine 12 | 1 2 . . . 1 . . 2 1 1 . . . . . . . 4 Core 1 | . . . . . . . . . . . . . . . . . 1 . Reactor 4 | . . . . . . . . . . 1 . . . . . . 2 1 Propulsion 50 | 2 . 2 . . 10 . 7 4 . 6 1 . . . 1 . 9 8 Treads 36 | 2 . 2 . . 10 . 5 4 . 5 1 . . . 1 . 5 1 Leg 2 | . . . . . . . . . . . . . . . . . . 2 Wheel 3 | . . . . . . . 2 . . 1 . . . . . . . . Hover 2 | . . . . . . . . . . . . . . . . . 2 . Flight 7 | . . . . . . . . . . . . . . . . . 2 5 Utility 117 | 2 5 2 2 . 9 3 8 3 7 10 7 3 3 8 7 3 22 13 Device 57 | 1 2 1 . . 4 . 4 1 1 2 6 2 3 8 3 2 11 6 Storage 8 | 1 1 . 2 . . 1 . . . . . . . . . . 2 1 Processor 5 | . . . . . . . . . 1 . . . . . 1 1 1 1 Hackware 20 | . . . . . 1 . 2 . 5 4 1 1 . . . . 2 4 Protection 27 | . 2 1 . . 4 2 2 2 . 4 . . . . 3 . 6 1 Artifact . | . . . . . . . . . . . . . . . . . . . Weapon 146 | 2 7 6 3 1 16 6 10 8 6 17 6 1 9 13 3 1 18 13 Energy Gun 13 | 2 5 1 . . . . . . . . . . . . 2 . . 3 Energy Cannon 5 | . . 1 . . . . . . . . . . 1 1 . . 1 1 Ballistic Gun 61 | . . 3 1 1 12 3 5 2 3 12 3 . 3 5 . . 7 1 Ballistic Cannon 14 | . . 1 . . . . . 4 1 1 1 . . 2 . . 4 . Launcher . | . . . . . . . . . . . . . . . . . . . Special Weapon 29 | . . . . . . . 2 . 2 4 1 1 4 4 . 1 2 8 Impact Weapon 19 | . . . . . 4 2 3 2 . . 1 . 1 1 1 . 4 . Slashing Weapon . | . . . . . . . . . . . . . . . . . . . Piercing Weapon . | . . . . . . . . . . . . . . . . . . . Special Melee Weapon 5 | . 2 . 2 . . 1 . . . . . . . . . . . . Unidentified Prototypes 5 | . . . . . . . . . . . . . . . 3 . 1 1 Corrupted Parts 2 | . . . . . . . . . . . . . . . . . 2 . System Corruption 5 | . . . . . . . . . . . . . . . . . 5 . Parts Lost 46 | . 2 . . . 1 . 1 1 . 3 . . 1 . . . 18 19 Power 4 | . . . . . . . . . . . . . . . . . 2 2 Propulsion 14 | . . . . . 1 . . . . 1 . . . . . . 6 6 Utility 13 | . 1 . . . . . . 1 . 1 . . 1 . . . 5 4 Weapon 15 | . 1 . . . . . 1 . . 1 . . . . . . 5 7 Highest Loss Streak 17 | . 1 . . . 1 . 1 1 . 2 . . 1 . . . 7 17 To Critical Strikes . | . . . . . . . . . . . . . . . . . . . Average Slot Usage (%) 88 | . 99 99 100 100 98 100 99 95 99 88 59 60 60 64 77 72 67 63 Engine 7 | . 14 14 14 14 9 9 7 7 7 6 . . . . . . . 3 Reactor 1 | . . . . . . . . . . . 6 6 6 6 6 6 5 1 Treads 21 | . 28 28 28 28 27 27 22 23 23 22 13 13 13 13 13 13 11 8 Device 8 | . 5 11 14 14 9 9 14 9 4 4 12 6 6 6 6 5 10 2 Storage 8 | . 14 14 14 14 9 9 7 7 7 7 6 6 6 6 6 6 5 4 Processor 1 | . . . . . . . . . 6 2 . . . . . 4 3 10 Hackware 1 | . . . . . . . . . 2 1 . 5 6 6 6 1 . 5 Protection 6 | . 8 2 . . 7 9 6 12 7 7 6 6 6 6 10 6 8 4 Energy Gun 3 | . 27 4 . . . . . . . . . . . . 4 6 . 3 Ballistic Gun 20 | . . 16 16 27 32 33 34 30 34 32 9 6 9 8 6 6 9 . Impact Weapon 1 | . . . . . 2 2 1 2 . . . . 1 1 6 . 3 4 Peak Build Rating 127 | 9 12 18 23 22 50 37 47 47 47 95 111 108 107 107 116 117 127 88 Average Rating 50 | 6 9 16 19 21 30 34 43 43 46 52 107 104 105 105 111 114 103 52 On Entrance 55 | . 9 12 18 21 22 34 37 41 47 46 94 108 104 97 102 110 117 35 Naked Turns . | . . . . . . . . . . . . . . . . . . . Heaviest Build 159 | 13 38 42 96 58 74 113 118 120 120 140 139 138 144 157 157 150 159 75 Greatest Support 155 | 40 40 40 40 40 60 60 68 60 60 98 145 145 145 145 155 155 155 40 Greatest Overweight (x) 8 | . . 1 2 1 1 1 7 1 1 8 . . . 1 1 . 1 8 Average Overweight (x) . | . . . . 1 . 1 1 1 1 1 . . . . . . . . Largest Inventory Capacity 25 | 8 15 15 25 20 20 25 25 25 25 25 25 25 25 25 25 25 25 15 Average Capacity 21 | 7 13 15 18 20 20 20 25 25 25 25 25 25 25 25 25 25 24 13 Most Carried 25 | 2 15 15 22 20 20 25 25 25 25 25 25 25 25 25 25 25 25 15 Average Carried 20 | . 11 14 18 19 19 19 24 23 24 24 24 24 24 24 24 24 22 10 Final Capacity 25 | 8 15 15 20 20 20 25 25 25 25 25 25 25 25 25 25 25 15 5 Final Carried 25 | 2 14 15 20 20 20 25 24 25 25 25 25 25 25 25 25 25 5 3 Class Distribution -------------------- 43% | Tank 25% | Mutant 11% | Commander-Tank 3% | Gunner 3% | Bothacker-Tank 3% | Scavenger-Mutant 3% | Scavenger-Tank Dominant Class ---------------- Mutant | -10/Materials Mutant | -10/Mines Mutant | -10/Exiles Mutant | -9/Mines Tank | -8/Materials Tank | -8/Garrison Tank | -7/Factory Tank | -7/Garrison Gunner | -7/Factory Bothacker-Tank | -7/Garrison Commander-Tank | -6/Factory Tank | -6/Waste Tank | -6/Factory Commander-Tank | -6/Extension Commander-Tank | -6/Cetus Commander-Tank | -6/Archives Tank | -6/Hub_04(d) Scavenger-Mutant | -5/Factory Resources | -11 -10 -10 -10 -9 -8 -8 -7 -7 -7 -7 -6 -6 -6 -6 -6 -6 -6 -5 ----------- Run | Yrd Mat Min Exi Min Mat Gar Fac Gar Fac Gar Fac Was Fac Ext Cet Arc Hub Fac Matter Collected 11919 | 270 135 134 50 68 2232 274 1240 1129 444 1469 713 215 528 775 96 120 1822 205 Remotely 592 | . . . . . . . . . . . 303 . . . . . 289 . Salvage Created 12531 | 95 933 120 . . 2727 468 913 1101 401 1088 283 764 264 1266 221 32 1558 297 Parts 587 | 7 49 7 . . 148 38 42 37 21 65 8 7 12 44 6 6 74 16 Haulers Intercepted 7 | . 2 . . . 2 . 2 . . . . . . . . . 1 . Recyclers Shooed 6 | . 1 . . . 3 . 1 . . . . . 1 . . . . . Parts Field Recycled . | . . . . . . . . . . . . . . . . . . . Retrieved Matter . | . . . . . . . . . . . . . . . . . . . Parts Self-Destructed . | . . . . . . . . . . . . . . . . . . . Prevented . | . . . . . . . . . . . . . . . . . . . Kills | -11 -10 -10 -10 -9 -8 -8 -7 -7 -7 -7 -6 -6 -6 -6 -6 -6 -6 -5 ------- Run | Yrd Mat Min Exi Min Mat Gar Fac Gar Fac Gar Fac Was Fac Ext Cet Arc Hub Fac Combat Hostiles Destroyed 193 | . 16 3 . . 38 16 11 20 8 21 7 3 6 12 3 . 24 5 Melee 1 | . . . . . . . . . . . . . . . . . . 1 Guns 173 | . 13 1 . . 38 16 11 17 8 20 7 3 6 11 . . 20 2 Cannons 9 | . . . . . . . . 3 . 1 . . . . . . 4 1 AOE 6 | . 3 2 . . . . . . . . . . . . 1 . . . Classes Destroyed 21 | 2 5 . . . 7 1 1 . . 2 . 1 . 1 . . 1 . Worker 7 | . . . . . 5 . . . . . . . 1 . . . 1 . Builder 9 | . . . . . 2 . 1 . . . . . . 1 . . 5 . Tunneler 1 | 1 . . . . . . . . . . . . . . . . . . Hauler 7 | . 2 . . . 2 . 2 . . . . . . . . . 1 . Recycler 16 | 1 . . . . 7 . 4 . . . . . . 3 . . 1 . Mechanic 1 | . . . . . 1 . . . . . . . . . . . . . Operator 6 | . 2 . . . 2 . 1 . . . . . . . . 1 . . Watcher 14 | . 3 . . . 5 . . . 1 1 . . . 2 . . 2 . Swarmer 38 | . 1 . . . 6 9 . 8 2 4 2 . 3 . . . 3 . Cutter 6 | . . . . . . 3 . 3 . . . . . . . . . . Grunt 91 | . 15 3 . . 22 3 5 9 3 7 4 . 2 7 . . 10 1 Brawler 2 | . . . . . 1 . . . . 1 . . . . . . . . Duelist 6 | . . . . . 1 . 1 . 1 3 . . . . . . . . Protector 3 | . . . . . 1 . . . . . . . . . . . 2 . Sentry 16 | . . . . . 7 1 1 . 1 1 . . . 3 . . 2 . Specialist 2 | . . . . . . . . . . 2 . . . . . . . . Hunter 3 | . . . . . . . . . . 1 . . . . . . 1 1 Programmer 16 | . . . . . . . 4 . 1 3 1 . 1 1 . . 2 3 Heavy 1 | . . . . . . . . . . . . . . . . . 1 . Behemoth 1 | . . . . . . . . . . . . . . 1 . . . . Compactor 3 | . . . . . . . . . . . . 3 . . . . . . Cetus Guard 3 | . . . . . . . . . . . . . . . 3 . . . Lightning 3 | . . . . . . . . . . . . . . . . . 3 . Thug 1 | . . . . . . . . . . . . . . 1 . . . . Savage 1 | . . . . . . . . . . . . . . . 1 . . . Best Kill Streak 7 | 2 3 2 . . 7 4 4 6 3 4 2 2 4 4 2 1 7 3 Combat Bots Only 6 | . 2 2 . . 6 4 4 6 3 4 2 2 3 2 2 . 5 3 Max Kills in Single Turn 4 | 1 2 2 . . 2 2 2 2 1 2 1 1 4 1 2 1 2 1 Gunslinging 1 | . . . . . 1 1 1 . . . . . 1 . . . 1 . Exploded 2 | . 2 2 . . . . . . . . . . . . 1 . . . Melee 1 | . . . . . . . . . . . . . . . . . . 1 Uniques/NPCs Destroyed . | . . . . . . . . . . . . . . . . . . . Combat | -11 -10 -10 -10 -9 -8 -8 -7 -7 -7 -7 -6 -6 -6 -6 -6 -6 -6 -5 -------- Run | Yrd Mat Min Exi Min Mat Gar Fac Gar Fac Gar Fac Was Fac Ext Cet Arc Hub Fac Hostile Shots Fired 1312 | . 87 3 . . 100 43 86 98 65 111 28 . 13 41 15 2 390 230 Missed 343 | . 28 1 . . 32 8 30 20 23 33 6 . 4 9 6 1 82 60 Damage Taken 16860 | . 756 76 . . 852 338 560 1079 491 1148 491 . 210 226 189 15 7497 2932 Core 1918 | . 93 8 . . 96 7 58 37 52 51 15 . 12 9 . 15 459 1006 Absorbed by Shields 1472 | . . . . . 260 124 140 116 . 63 81 . 43 195 83 4 331 32 Reduced by Siege Mode 332 | . . . . . . . . . . . 31 . . 7 . . 294 . Ignored by Resistances 817 | . . . . . . . . . . . . . . . . . 744 73 Regen/Repaired (Parts) 1330 | . . . . . . . 59 644 335 292 . . . . . . . . Core Remaining (%) 70 | 100 . . . 59 . 81 . . . 71 . . . . . . 40 . Volleys Fired 676 | 6 75 5 . . 104 27 38 41 34 83 20 25 25 40 4 11 106 32 Largest 5 | 2 2 2 . . 4 4 5 5 5 5 2 1 2 2 1 1 5 3 Hottest 233 | 90 100 48 . . 100 100 125 148 128 133 121 60 100 100 100 30 111 233 Shots Fired 1753 | 12 141 9 . . 411 98 170 165 90 238 34 25 34 58 4 11 212 41 Gun 1572 | 12 141 8 . . 411 98 166 143 71 205 30 20 25 45 . 8 165 24 Cannon 91 | . . 1 . . . . . 22 . 6 2 . 2 2 4 . 45 7 Launcher . | . . . . . . . . . . . . . . . . . . . Special 90 | . . . . . . . 4 . 19 27 2 5 7 11 . 3 2 10 Kinetic 1472 | . . 9 . . 411 98 166 165 71 211 32 20 25 45 . 8 205 6 Thermal 94 | 6 54 . . . . . . . . . . . 2 2 4 . 5 21 Explosive . | . . . . . . . . . . . . . . . . . . . Electromagnetic 97 | 6 87 . . . . . . . . . . . . . . . . 4 Robot Hit Streak 35 | 3 9 4 . . 15 7 13 12 10 12 6 15 10 18 1 6 35 10 Robot Miss Streak 7 | 3 5 1 . . 4 6 6 3 6 3 6 3 6 4 3 1 7 3 Penetration Max 1 | . . . . . . . . . . 1 1 . . 1 . . 1 . Secondary Targets 35 | . 4 . . . 8 5 2 1 4 4 . . 1 1 . . 5 . Max Gunslinging Chain 1 | . 1 . . . 1 1 1 1 1 1 . . 1 1 . . 1 . Shots Hit Robots 1156 | 7 91 6 4 . 264 43 108 107 49 152 28 24 21 44 1 9 164 34 Core Hits 499 | 3 42 4 . . 106 22 33 40 20 52 18 11 11 33 7 2 86 9 Critical Kills 12 | . . . . . 1 . 1 2 . 1 . . . 1 2 1 3 . Critical Parts Destroyed 12 | . . . . . 3 1 2 1 . . . . . 1 . . 4 . Critical Strikes 40 | . 7 . . . 5 1 3 4 . 3 . . . 2 2 1 11 1 Burn 7 | . 7 . . . . . . . . . . . . . . . . . Meltdown 2 | . . . . . . . . . . . . . . . 2 . . . Destroy 17 | . . . . . 5 . 1 1 . 1 . . . 2 . 1 6 . Blast 7 | . . . . . . . . 1 . 2 . . . . . . 4 . Corrupt 1 | . . . . . . . . . . . . . . . . . . 1 Smash 6 | . . . . . . 1 2 2 . . . . . . . . 1 . Melee Attacks 96 | . . . 4 . 15 16 5 20 . . 1 . 14 . . . 20 1 Impact 92 | . . . . . 15 16 5 20 . . 1 . 14 . . . 20 1 Slashing . | . . . . . . . . . . . . . . . . . . . Piercing . | . . . . . . . . . . . . . . . . . . . Sneak Attacks 16 | . . . 4 . 5 . 5 . . . . . . . . . 1 1 Combat Hostiles 1 | . . . . . . . . . . . . . . . . . . 1 Follow-up Attacks . | . . . . . . . . . . . . . . . . . . . Damage Inflicted 30232 | 88 1516 202 . . 4832 893 2293 2971 609 2412 1155 1614 852 2321 854 99 6705 816 Guns 23143 | 88 1325 96 . . 4398 759 1822 1226 609 2284 1104 1614 852 1789 . 99 4463 615 Cannons 2414 | . . . . . . . . 435 . 128 51 . . 206 283 . 1162 149 Explosions 1874 | . 191 106 . . . . . . . . . . . 326 571 . 680 . Melee 2798 | . . . . . 434 134 471 1310 . . . . . . . . 397 52 Ramming 3 | . . . . . . . . . . . . . . . . . 3 . Kinetic 22639 | . . 96 . . 4398 759 1822 1661 609 2412 1155 1614 852 1789 . 99 5278 95 Thermal 3898 | 61 678 106 . . . . . . . . . . . 532 854 . 1027 640 Explosive . | . . . . . . . . . . . . . . . . . . . Electromagnetic 894 | 27 838 . . . . . . . . . . . . . . . . 29 Impact 2798 | . . . . . 434 134 471 1310 . . . . . . . . 397 52 Slashing . | . . . . . . . . . . . . . . . . . . . Piercing . | . . . . . . . . . . . . . . . . . . . Highest Corruption 46 | . . . . . . . 4 1 2 3 . . 1 1 1 1 46 6 Average Corruption 3 | . . . . . . . 2 1 1 2 . . 1 1 1 1 23 5 Corruption Purged 5 | . . . . . . . 4 . . . . . . . . 1 . . Corruption Blocked . | . . . . . . . . . . . . . . . . . . . Effects 165 | . . . . . . . 26 17 5 32 . . 8 7 3 1 59 7 Message Errors 34 | . . . . . . . 4 4 2 6 . . 1 2 2 . 12 1 Matter Fused 43 | . . . . . . . 9 5 1 11 . . 2 3 1 . 9 2 Heat Flow Errors 18 | . . . . . . . 4 3 . 5 . . 1 . . 1 4 . Energy Discharges 15 | . . . . . . . 3 2 1 3 . . 1 . . . 5 . Parts Rejected 4 | . . . . . . . . . . . . . . . . . 3 1 Parts Fused 2 | . . . . . . . 2 . . . . . . . . . . . Data Loss (minor) 20 | . . . . . . . 2 1 1 4 . . 3 2 . . 6 1 Data Loss (major) 4 | . . . . . . . 1 . . . . . . . . . 2 1 Misfires 7 | . . . . . . . . 2 . 2 . . . . . . 3 . Alerts 2 | . . . . . . . . . . . . . . . . . 1 1 Misdirections 4 | . . . . . . . . . . . . . . . . . 4 . Weapon Failures 12 | . . . . . . . 1 . . 1 . . . . . . 10 . Overload Shots . | . . . . . . . . . . . . . . . . . . . Overflow Damage 927 | . . . . . 148 94 231 246 . . 1 . . 73 . . 134 . Projectiles 107 | . . . . . . . . . . . 1 . . 35 . . 71 . Explosions 41 | . . . . . 3 . . . . . . . . 38 . . . . Melee 779 | . . . . . 145 94 231 246 . . . . . . . . 63 . Knockbacks 24 | . . . . . 1 2 1 6 . 1 . . . . . . 13 . Impact 5 | . . . . . 1 2 1 . . . . . . . . . 1 . Kinetic 18 | . . . . . . . . 5 . 1 . . . . . . 12 . Secondary 1 | . . . . . . . . 1 . . . . . . . . . . Self-Inflicted Damage 246 | . 30 . . . 98 . . . . . . . . . . . 118 . Shots 4 | . 1 . . . 1 . . . . . . . . . . . 2 . Rammed 1 | . . . . . . . . . . . . . . . . . 1 . Targets Rammed 1 | . . . . . . . . . . . . . . . . . 1 . Kicked . | . . . . . . . . . . . . . . . . . . . Crushed . | . . . . . . . . . . . . . . . . . . . Highest Temperature 361 | 120 325 33 . . 338 320 237 203 119 275 224 222 174 229 8 93 361 273 Average Temperature 88 | 61 93 12 . . 98 101 66 50 36 94 95 85 65 62 3 47 106 113 Received Heat Transfer 2695 | . 432 15 . . 378 96 89 375 84 303 116 . 19 63 7 . 490 228 Effects 7 | . 1 . . . . 3 2 . . . . 1 . . . . . . Energy Bleed 2 | . 1 . . . . . . . . . . 1 . . . . . . Interference 5 | . . . . . . 3 2 . . . . . . . . . . . Siege Activations 12 | . . . . . . . . . . 1 2 . . 2 . . 7 . Total Turns 261 | . . . . . . . . . . 8 20 . . 8 . . 225 . Longest Duration 101 | . . . . . . . . . . 8 14 . . 6 . . 101 . Robots Corrupted 8 | . 1 . . . 1 1 1 3 . . . . . . . . 1 . Combat Hostiles . | . . . . . . . . . . . . . . . . . . . Parts Fried 18 | . 6 . . . 4 . 4 2 . . . . . 1 . . 1 . Impact Corruptions 18 | . . . . . 5 2 4 5 . . . . . . . . 2 . Robots Melted 4 | . . . . . . . . . . . . . . 1 2 . . 1 Combat Hostiles 4 | . . . . . . . . . . . . . . 1 2 . . 1 Parts Melted 8 | . 3 1 . . . . . . . . . . . . 2 . 1 1 Heat Transferred 5346 | 185 2074 100 . . . . . . . . . . . 560 903 . 843 681 Parts Sabotaged 2 | . . . . . . . . . . . . . . . . . 2 . Parts Stolen . | . . . . . . . . . . . . . . . . . . . Parts Stripped . | . . . . . . . . . . . . . . . . . . . Power Chain Reactions 3 | . 3 . . . . . . . . . . . . . . . . . Alert | -11 -10 -10 -10 -9 -8 -8 -7 -7 -7 -7 -6 -6 -6 -6 -6 -6 -6 -5 ------- Run | Yrd Mat Min Exi Min Mat Gar Fac Gar Fac Gar Fac Was Fac Ext Cet Arc Hub Fac Peak Influence 1590 | 10 161 174 . . 823 1070 642 951 701 1590 1268 472 397 261 383 148 652 321 Initial 834 | . 6 62 . . . 516 561 276 499 304 834 443 330 42 84 73 51 298 Average 385 | 4 55 53 . . 305 791 468 604 518 913 1056 463 213 150 227 134 396 173 Maximum Alert Level 4 | . . . . . 3 3 2 3 3 4 4 2 1 1 1 . 2 1 Low Security (%) 44 | 100 100 100 . 100 57 . . . . . . . 48 84 36 100 11 62 Level 1 14 | . . . . . 7 . 22 20 22 10 . . 51 15 63 . 38 37 Level 2 20 | . . . . . 13 28 77 52 68 20 . 100 . . . . 49 . Level 3 15 | . . . . . 21 71 . 27 9 39 57 . . . . . . . Level 4 4 | . . . . . . . . . . 29 42 . . . . . . . Level 5 . | . . . . . . . . . . . . . . . . . . . High Security . | . . . . . . . . . . . . . . . . . . . Max Security . | . . . . . . . . . . . . . . . . . . . Squads Dispatched 38 | . 4 1 . . 6 . 4 . 2 . 4 . 2 . . . 12 3 Investigation 6 | . 3 1 . . 1 . . . . . . . . . . . . 1 Extermination 10 | . . . . . . . 4 . . . 1 . 2 . . . 2 1 Reinforcement 13 | . 1 . . . 4 . . . . . 2 . . . . . 5 1 Assault 4 | . . . . . 1 . . . 1 . . . . . . . 2 . Garrison 5 | . . . . . . . . . 1 . 1 . . . . . 3 . Intercept . | . . . . . . . . . . . . . . . . . . . Searches Triggered . | . . . . . . . . . . . . . . . . . . . Construction Impeded 2 | . . . . . 1 . . . . . . . . . . . 1 . Haulers Reinforced 1 | . . . . . . . . . . . . . . . . . . 1 Active Scanning Responses . | . . . . . . . . . . . . . . . . . . . Cargo Convoy Interrupts . | . . . . . . . . . . . . . . . . . . . Stealth | -11 -10 -10 -10 -9 -8 -8 -7 -7 -7 -7 -6 -6 -6 -6 -6 -6 -6 -5 --------- Run | Yrd Mat Min Exi Min Mat Gar Fac Gar Fac Gar Fac Was Fac Ext Cet Arc Hub Fac Distress Signals 14 | . . . . . 4 . . . 2 . 2 . 1 . 2 . 2 1 Communications Jammed 10 | . . . . . . . . . . . 10 . . . . . . . Distress Signals 10 | . . . . . . . . . . . 10 . . . . . . . Times Spotted 373 | . 27 2 . . 53 15 18 20 20 41 21 6 12 22 10 7 69 30 Peak Tracking Total 11 | . 3 2 . . 6 3 4 6 6 6 4 2 3 4 5 1 11 11 Tactical Retreats 28 | . 4 . . . 1 . . 2 2 . 1 . . 1 . . 14 3 Traps | -11 -10 -10 -10 -9 -8 -8 -7 -7 -7 -7 -6 -6 -6 -6 -6 -6 -6 -5 ------- Run | Yrd Mat Min Exi Min Mat Gar Fac Gar Fac Gar Fac Was Fac Ext Cet Arc Hub Fac Traps Triggered 18 | . . . . . . 4 . 3 1 7 1 . 1 . . . . 1 Indirectly . | . . . . . . . . . . . . . . . . . . . Trap Hack Attempts 53 | . 53 . . . . . . . . . . . . . . . . . Triggered . | . . . . . . . . . . . . . . . . . . . Disarmed 2 | . 2 . . . . . . . . . . . . . . . . . Reprogrammed 5 | . 5 . . . . . . . . . . . . . . . . . Reused 3 | . 3 . . . . . . . . . . . . . . . . . Traps Extracted . | . . . . . . . . . . . . . . . . . . . Installed . | . . . . . . . . . . . . . . . . . . . Triggered 2 | . 1 . . . . . . . . . . . . 1 . . . . Machines | -11 -10 -10 -10 -9 -8 -8 -7 -7 -7 -7 -6 -6 -6 -6 -6 -6 -6 -5 ---------- Run | Yrd Mat Min Exi Min Mat Gar Fac Gar Fac Gar Fac Was Fac Ext Cet Arc Hub Fac Machines Disabled 32 | . . 6 . . 3 2 . 1 . 6 3 . . 4 1 1 4 1 Max in Single Turn 6 | . . 6 . . 1 1 . 1 . 1 1 . . 2 . 1 1 . Garrison Access 3 | . . . . . . . . . . . 1 . 1 . . . 1 . Garrison Relay 8 | . . . . . . 2 . 1 . 5 . . . . . . . . Network Hub 1 | . . . . . . . . . . . . . . . . . 1 . Machines Repaired . | . . . . . . . . . . . . . . . . . . . Machines Dismantled 1 | . . . . . . . . . . . . . . . . . 1 . Machines Sabotaged . | . . . . . . . . . . . . . . . . . . . Overloaded Fab Kills . | . . . . . . . . . . . . . . . . . . . Hacking | -11 -10 -10 -10 -9 -8 -8 -7 -7 -7 -7 -6 -6 -6 -6 -6 -6 -6 -5 --------- Run | Yrd Mat Min Exi Min Mat Gar Fac Gar Fac Gar Fac Was Fac Ext Cet Arc Hub Fac Machines Accessed 55 | . 10 2 2 . 10 . 3 . 5 2 3 . 6 5 3 . 2 2 Terminals 34 | . 8 . . . 6 . 1 . 2 2 . . 4 5 3 . 2 1 Fabricators 4 | . . . . . . . 1 . 1 . 2 . . . . . . . Repair Stations 1 | . . . . . 1 . . . . . . . . . . . . . Recycling Units 4 | . 2 . . . 1 . . . . . . . 1 . . . . . Scanalyzers 2 | . . . . . 1 . . . 1 . . . . . . . . . Garrison Access 6 | . . . . . 1 . 1 . 1 . 1 . 1 . . . . 1 Total Hacks 163 | . 41 2 24 . 31 . 3 . 8 2 4 . 20 9 6 . 6 7 Successful 101 | . 28 2 24 . 17 . 1 . 4 1 3 . 9 4 2 . 3 3 Failed 62 | . 13 . . . 14 . 2 . 4 1 1 . 11 5 4 . 3 4 Catastrophic 15 | . 4 . . . 1 . 1 . 1 1 . . 1 2 3 . 1 . Database Lockouts . | . . . . . . . . . . . . . . . . . . . Manual 48 | . 16 . 2 . 18 . . . . . . . 6 4 1 . . 1 Terminals 108 | . 39 . . . 20 . 1 . 4 2 . . 16 9 6 . 6 5 Fabricators 4 | . . . . . . . 1 . 1 . 2 . . . . . . . Repair Stations 7 | . . . . . 7 . . . . . . . . . . . . . Recycling Units 6 | . 2 . . . 1 . . . . . . . 3 . . . . . Scanalyzers 4 | . . . . . 2 . . . 2 . . . . . . . . . Garrison Access 8 | . . . . . 1 . 1 . 1 . 2 . 1 . . . . 2 Terminal Hacks 66 | . 18 2 24 . 3 . . . 1 1 . . 7 4 2 . 3 1 Record 28 | . 3 . 23 . . . . . . . . . . . 2 . . . Robot Analysis 5 | . 3 . . . 1 . . . . . . . . 1 . . . . Prototype ID Bank 5 | . 3 . . . 1 . . . . . . . . . . . 1 . Open Door 4 | . . 2 . . . . . . . . . . . 2 . . . . Branch Access Points 1 | . . . . . . . . . . . . . 1 . . . . . Emergency Access Points 1 | . 1 . . . . . . . . . . . . . . . . . Terminal Index 3 | . 1 . . . 1 . . . . . . . 1 . . . . . Unreport Threat 2 | . . . . . . . . . 1 . . . 1 . . . . . Locate Traps 6 | . 1 . . . . . . . . . . . 2 1 . . 1 1 Dispatch Records 1 | . 1 . . . . . . . . . . . . . . . . . Maintenance Status 1 | . 1 . . . . . . . . . . . . . . . . . Security Status 1 | . . . . . . . . . . . . . 1 . . . . . Patrol Status 1 | . 1 . . . . . . . . . . . . . . . . . Transport Status 1 | . . . . . . . . . . . . . 1 . . . . . Hauler Manifests 1 | . 1 . . . . . . . . . . . . . . . . . Registered Components 1 | . 1 . . . . . . . . . . . . . . . . . Zone Layout 2 | . 1 . . . . . . . . . . . . . . . 1 . Garrison Registry 1 | . . . . . . . . . . 1 . . . . . . . . Derelict Proto ID Bank 1 | . . . 1 . . . . . . . . . . . . . . . Fabricator Hacks 1 | . . . . . . . . . . . 1 . . . . . . . Network Status 1 | . . . . . . . . . . . 1 . . . . . . . Repair Station Hacks 2 | . . . . . 2 . . . . . . . . . . . . . Scan Component 2 | . . . . . 2 . . . . . . . . . . . . . Recycling Unit Hacks 1 | . . . . . . . . . . . . . 1 . . . . . Process 1 | . . . . . . . . . . . . . 1 . . . . . Scanalyzer 4 | . . . . . 2 . . . 2 . . . . . . . . . Insert Component 2 | . . . . . 1 . . . 1 . . . . . . . . . Analyze 2 | . . . . . 1 . . . 1 . . . . . . . . . Garrison Access Hacks 7 | . . . . . 1 . 1 . 1 . 2 . 1 . . . . 1 Unlock Access 3 | . . . . . 1 . 1 . 1 . . . . . . . . . Seal Access 2 | . . . . . . . . . . . 1 . 1 . . . . . Coupler Status 2 | . . . . . . . . . . . 1 . . . . . . 1 Unauthorized Hacks 20 | . 10 . . . 9 . . . . . . . . . . . . 1 Terminals 16 | . 8 . . . 8 . . . . . . . . . . . . . Track 1 | . . . . . 1 . . . . . . . . . . . . . Assimilate 2 | . . . . . 2 . . . . . . . . . . . . . Botnet 2 | . 2 . . . . . . . . . . . . . . . . . Skim 11 | . 6 . . . 5 . . . . . . . . . . . . . Fabricators . | . . . . . . . . . . . . . . . . . . . Repair Stations . | . . . . . . . . . . . . . . . . . . . Recycling Units 3 | . 2 . . . 1 . . . . . . . . . . . . . Tunnel 3 | . 2 . . . 1 . . . . . . . . . . . . . Scanalyzers . | . . . . . . . . . . . . . . . . . . . Garrison Access 1 | . . . . . . . . . . . . . . . . . . 1 Eject 1 | . . . . . . . . . . . . . . . . . . 1 Data Cores Recovered 2 | . 1 . . . . . 1 . . . . . . . . . . . Used . | . . . . . . . . . . . . . . . . . . . Hacking Detections 40 | . 7 . . . 8 . 3 . 4 2 2 . 5 3 3 . 2 1 Full Trace Events . | . . . . . . . . . . . . . . . . . . . Feedback Events . | . . . . . . . . . . . . . . . . . . . Feedback Blocked . | . . . . . . . . . . . . . . . . . . . Robot Schematics Acquired . | . . . . . . . . . . . . . . . . . . . Robots Built . | . . . . . . . . . . . . . . . . . . . Authchips . | . . . . . . . . . . . . . . . . . . . Time . | . . . . . . . . . . . . . . . . . . . Total Robot Build Rating . | . . . . . . . . . . . . . . . . . . . Part Schematics Acquired 2 | . . . . . 1 . . . 1 . . . . . . . . . Parts Built . | . . . . . . . . . . . . . . . . . . . Authchips . | . . . . . . . . . . . . . . . . . . . Time . | . . . . . . . . . . . . . . . . . . . Total Part Build Rating . | . . . . . . . . . . . . . . . . . . . Parts Repaired . | . . . . . . . . . . . . . . . . . . . Time . | . . . . . . . . . . . . . . . . . . . Parts Recycled . | . . . . . . . . . . . . . . . . . . . Recycled Matter 22 | . . . . . . . . . . . . . 22 . . . . . Retrieved Matter . | . . . . . . . . . . . . . . . . . . . Retrieved Components . | . . . . . . . . . . . . . . . . . . . Parts Scanalyzed 2 | . . . . . 1 . . . 1 . . . . . . . . . Part Schematics Acquired 2 | . . . . . 1 . . . 1 . . . . . . . . . Parts Damaged . | . . . . . . . . . . . . . . . . . . . Bothacking | -11 -10 -10 -10 -9 -8 -8 -7 -7 -7 -7 -6 -6 -6 -6 -6 -6 -6 -5 ------------ Run | Yrd Mat Min Exi Min Mat Gar Fac Gar Fac Gar Fac Was Fac Ext Cet Arc Hub Fac Used RIF Installer 3 | . . . . . . 1 . 1 . 1 . . . . . . . . Threat Obfuscator 1 | . . . . . . . . . . 1 . . . . . . . . Structural Interface 1 | . . . . . . . . 1 . . . . . . . . . . Robots Hacked 36 | . . . 4 . . . 2 . 9 6 1 4 . 2 . 2 1 5 Non-combat 11 | . . . 3 . . . 1 . 3 . . . . . . 2 . 2 Combat 25 | . . . 1 . . . 1 . 6 6 1 4 . 2 . . 1 3 Robot Hacks Applied 38 | . . . 4 . . . 2 . 10 6 1 5 . 2 . 2 1 5 parse_system 11 | . . . 4 . . . . . 2 . . 1 . 2 . . 1 1 drop_inventory 1 | . . . . . . . . . . . . . . . . . . 1 ignore_targets 4 | . . . . . . . . . . . . 4 . . . . . . find_garrison 1 | . . . . . . . . . 1 . . . . . . . . . amplify_resonance 2 | . . . . . . . . . 1 . . . . . . . . 1 disable_weapons 1 | . . . . . . . . . . 1 . . . . . . . . streamctrl_high 1 | . . . . . . . . . . . . . . . . . . 1 formatsys_low 5 | . . . . . . . 1 . 2 . . . . . . 2 . . formatsys_high 12 | . . . . . . . 1 . 4 5 1 . . . . . . 1 Relay Couplers Released 48 | . . . . . . 9 . 3 4 21 3 . . . . . 1 7 Ejected 3 | . . . . . . . . . . . . . . . . . . 3 Machine Destruction 37 | . . . . . . 9 . 3 . 21 3 . . . . . 1 . Programmers 8 | . . . . . . . . . 4 . . . . . . . . 4 Attached 18 | . . . . . . . 2 . 5 4 1 1 . . . . 1 4 Fabnet Peak Effective % . | . . . . . . . . . . . . . . . . . . . Robots Rewired 13 | . . . . . . . . . . 7 . . . 6 . . . . Allies Hacked 2 | . . . . . . . . . . . . . 1 . . . . 1 Hacks Repelled . | . . . . . . . . . . . . . . . . . . . Allies | -11 -10 -10 -10 -9 -8 -8 -7 -7 -7 -7 -6 -6 -6 -6 -6 -6 -6 -5 -------- Run | Yrd Mat Min Exi Min Mat Gar Fac Gar Fac Gar Fac Was Fac Ext Cet Arc Hub Fac Total Allies 48 | . . 3 . . . . 2 . 6 14 1 . . 13 5 2 . 2 Largest Group 13 | . . 3 . . . . 1 1 4 7 8 2 2 11 13 13 10 2 Highest-Rated Group 855 | . . 40 . . . . 32 23 73 346 433 129 129 451 855 855 679 82 Highest-Rated Ally 159 | . . 16 . . . . 32 23 32 80 90 86 86 159 159 159 96 41 Total Orders 48 | . . 1 . . . . 2 11 13 16 4 . 1 . . . . . STAY 18 | . . . . . . . . 5 4 8 1 . . . . . . . FOLLOW 13 | . . . . . . . . 2 5 5 1 . . . . . . . GUARD 1 | . . 1 . . . . . . . . . . . . . . . . AID 13 | . . . . . . . 2 4 4 3 . . . . . . . . EXPLORE 3 | . . . . . . . . . . . 2 . 1 . . . . . Ally Attacks 446 | . . 11 . . . . 3 . 10 70 86 44 12 84 43 19 52 12 Total Damage 13189 | . . 145 . . . . 46 . 313 1604 2672 1652 482 1880 1259 459 2177 500 Kills 87 | . . 1 . . . . 2 . 3 17 20 3 8 9 7 4 11 2 Allies Corrupted 4 | . . . . . . . . . . . . . . . . . 4 . Allies Melted . | . . . . . . . . . . . . . . . . . . . Intel | -11 -10 -10 -10 -9 -8 -8 -7 -7 -7 -7 -6 -6 -6 -6 -6 -6 -6 -5 ------- Run | Yrd Mat Min Exi Min Mat Gar Fac Gar Fac Gar Fac Was Fac Ext Cet Arc Hub Fac Robot Analysis Total 5 | . 3 . . . 1 . . . . . . . . 1 . . . . Derelict Logs Recovered 2 | . . 1 . 1 . . . . . . . . . . . . . . Drone Launches 10 | . . . . . . . . . . . 2 . 6 . . . 2 . Drone Recoveries 3 | . . . . . . . . . . . 1 . 2 . . . . . Exploration | -11 -10 -10 -10 -9 -8 -8 -7 -7 -7 -7 -6 -6 -6 -6 -6 -6 -6 -5 ------------- Run | Yrd Mat Min Exi Min Mat Gar Fac Gar Fac Gar Fac Was Fac Ext Cet Arc Hub Fac Turns Passed 22655 | 121 2140 1772 632 822 3317 1299 1675 1386 614 2364 709 284 1130 1402 558 219 1141 1070 Spaces Moved 8932 | 48 997 888 276 337 1054 457 609 438 201 821 315 130 586 610 296 51 366 452 Core 137 | 2 . . . . . . . . . . . . . . . . 1 134 Treads 8631 | 46 997 888 276 337 1054 457 565 438 201 815 315 130 586 610 296 51 325 244 Legs 11 | . . . . . . . . . . . . . . . . . . 11 Wheels 50 | . . . . . . . 44 . . 6 . . . . . . . . Hover 3 | . . . . . . . . . . . . . . . . . 3 . Flight 100 | . . . . . . . . . . . . . . . . . 37 63 Fastest Speed 30 | 50 160 160 160 240 160 240 145 240 243 210 170 170 170 170 160 160 32 30 Average Speed 205 | 155 160 189 223 240 238 240 233 241 243 243 170 170 170 197 168 160 171 187 Slowest Speed 715 | 160 160 240 320 240 240 240 240 243 243 260 170 170 170 255 255 160 270 715 Overloaded Moves . | . . . . . . . . . . . . . . . . . . . Propulsion Burnouts . | . . . . . . . . . . . . . . . . . . . Robots Hopped . | . . . . . . . . . . . . . . . . . . . Cave-ins Triggered . | . . . . . . . . . . . . . . . . . . . Exploration Rate (%) 49 | 4 95 99 64 63 75 38 15 39 8 84 13 73 21 68 78 72 22 14 Regions Visited 18 Branch Regions 7 Pre-discovered Areas 6 | . 3 . 1 1 1 . . . . . . . . . . . . . Known Exits Taken 4 | . . . . . 1 . 1 . 1 . . . 1 . . . . . Unknown Exits Taken 9 | 1 1 1 1 1 . . . . . . . . . 1 1 1 1 . Scrap Searched 2 | . . 1 . 1 . . . . . . . . . . . . . . Spaces Dug 47 | . . . . . 7 4 . . . . 1 . 29 . . . 6 . Terrain Destroyed 304 | . 13 40 . . 48 4 . . . . 4 2 34 7 66 . 83 3 Melee 29 | . . . . . 7 4 . . . . 1 . 11 . . . 6 . Projectile 52 | . . . . . . . . . . . 3 2 7 4 2 . 31 3 AOE 223 | . 13 40 . . 41 . . . . . . . 16 3 64 . 46 . Terrain Rammed . | . . . . . . . . . . . . . . . . . . . Walls Destroyed . | . . . . . . . . . . . . . . . . . . . Machines Disabled . | . . . . . . . . . . . . . . . . . . . Actions | -11 -10 -10 -10 -9 -8 -8 -7 -7 -7 -7 -6 -6 -6 -6 -6 -6 -6 -5 --------- Run | Yrd Mat Min Exi Min Mat Gar Fac Gar Fac Gar Fac Was Fac Ext Cet Arc Hub Fac Total 12088 | 79 1403 973 289 352 1630 586 791 658 285 1080 474 191 676 773 345 180 682 641 Wait 1622 | 17 231 44 . 11 378 58 84 126 27 85 103 26 27 95 17 111 102 80 Move 8917 | 47 996 887 275 336 1054 456 608 437 201 820 315 129 585 609 295 50 365 452 Hop . | . . . . . . . . . . . . . . . . . . . Pick Up 163 | 2 23 11 3 2 18 8 15 5 3 17 11 3 4 4 8 1 10 15 Fast Attach 80 | 7 . 5 . . 6 1 3 1 4 12 1 . 2 . 2 1 16 19 Attach 78 | . 3 . . . 6 1 4 7 1 5 4 . 4 4 3 2 16 18 Detach 28 | . . 1 . . 3 . . 6 . 1 1 . 2 . . 1 5 8 Swap 173 | . 11 5 5 1 24 8 18 9 9 18 9 4 6 17 6 1 20 2 Drop 174 | . 11 15 2 2 22 3 16 2 6 29 9 4 5 4 10 2 18 14 Fire 676 | 6 75 5 . . 104 27 38 41 34 83 20 25 25 40 4 11 106 32 Melee 96 | . . . 4 . 15 16 5 20 . . 1 . 14 . . . 20 1 Ram . | . . . . . . . . . . . . . . . . . . . Kick . | . . . . . . . . . . . . . . . . . . . Crush 1 | . . . . . . . . . . . . . . . . . 1 . Escape Stasis 22 | . . . . . . 8 . 4 . 10 . . . . . . . . Rewire . | . . . . . . . . . . . . . . . . . . . Trap 53 | . 53 . . . . . . . . . . . . . . . . . Miscellaneous 5 | . . . . . . . . . . . . . 2 . . . 3 . Route ------- -11/Scrapyard -10/Materials (discovered 5 exits: *Mat x3 / *Min / *Sub) -10/Mines (discovered 4 exits: *Mat x2 / *Exi / *Sub) -10/Exiles -9/Mines -8/Materials (discovered 4 exits: *Fac x3 / Gar) -8/Garrison -7/Factory (discovered 2 exits: [*Low] / Gar) -7/Garrison -7/Factory -7/Garrison (discovered 3 exits: *Fac x3) -6/Factory -6/Waste -6/Factory (discovered 5 exits: *Fac / *Low x2 / *Ext x2) -6/Extension (discovered 2 exits: *Fac / *Cet) -6/Cetus (discovered 2 exits: *Fac / *Arc) -6/Archives (discovered 2 exits: *Fac / *Hub) -6/Hub_04(d) -5/Factory History --------- Turn | Location | Event 6 | -11/Scrapyard | Discovered new exit (range 16) 122 | -11/Scrapyard | Entered Materials 311 | -10/Materials | Build established: Mutant 687 | -10/Materials | Discovered new exit (range 10) 969 | -10/Materials | Discovered new exit (range 13) 1033 | -10/Materials | Identified exit to Materials 1075 | -10/Materials | Identified exit to Subcaves 1106 | -10/Materials | Learned Storage stockpile data 1125 | -10/Materials | Learned 4 Materials zone layouts 1139 | -10/Materials | Loaded intel: 13 trap records 1140 | -10/Materials | Learned location of Storage (-9) 1148 | -10/Materials | Discovered exit to Materials (range 16) 1161 | -10/Materials | Learned Storage stockpile data 1522 | -10/Materials | Derelicts attacked the area 2262 | -10/Materials | Entered Mines 2263 | -10/Mines | Assembled infested the area 2399 | -10/Mines | Met a Derelict shopkeep closing up shop 2634 | -10/Mines | Discovered exit to Materials (range 4) 2669 | -10/Mines | Discovered new exit (range 5) 2764 | -10/Mines | Assisted by bots powering up and referring to "LRC-V3" 3003 | -10/Mines | Met a Derelict who couldn't figure out how to use a Trap Extractor 3070 | -10/Mines | A weapon hastily lodged in a ceiling crevice suddenly fell to the ground 3161 | -10/Mines | Discovered exit to Materials (range 9) 3196 | -10/Mines | Learned Materials trap positions 3686 | -10/Mines | Discovered exit to Subcaves (range 11) 4034 | -10/Mines | Entered Exiles 4094 | -10/Exiles | Met 8R-AWN 4133 | -10/Exiles | Met EX-HEX 4216 | -10/Exiles | Met EX-BIN 4235 | -10/Exiles | Aligned with FarCom system 4236 | -10/Exiles | Given EX-Vault access code 4273 | -10/Exiles | Opened EX-Vault 4284 | -10/Exiles | Found XL Autogun Array 4298 | -10/Exiles | Found YOLO Cannon 4315 | -10/Exiles | Found Skeleton Box 4380 | -10/Exiles | Warned to stay clear of 0b10 Research branches 4449 | -10/Exiles | Met EX-DEC 4514 | -10/Exiles | Learned location of Zion (-7) 4634 | -10/Exiles | Discovered new exit (range 14) 4666 | -10/Exiles | Stole three prototypes: Skeleton Box, YOLO Cannon, XL Autogun Array 4666 | -10/Exiles | Entered Mines 4724 | -9/Mines | Met a Derelict bent on vengeance 5155 | -9/Mines | Received a Rocket Launcher from a helpful Derelict 5191 | -9/Mines | Discovered new exit (range 3) 5488 | -9/Mines | Entered Materials 5488 | -8/Materials | Evolved 4 slots: Propulsion x1, Utility x1, Weapon x2 5489 | -8/Materials | Identified exit to Factory 5490 | -8/Materials | Loaded intel: 21 trap records 6066 | -8/Materials | Build established: Tank 7888 | -8/Materials | First assault squad dispatched 8501 | -8/Materials | Discovered exit to Factory (range 9) 8730 | -8/Materials | Learned 2 Lower Caves zone layouts 8781 | -8/Materials | Learned location of 1 exit from Storage 8805 | -8/Materials | Identified exit to Garrison 8805 | -8/Materials | Entered Garrison 8839 | -8/Garrison | Triggered checkpoint 8873 | -8/Garrison | Garrison Relay disabled 9153 | -8/Garrison | Triggered checkpoint 9321 | -8/Garrison | Triggered checkpoint 9347 | -8/Garrison | Triggered checkpoint 9505 | -8/Garrison | Discovered exit to Factory (range 12) 9725 | -8/Garrison | Triggered checkpoint 9887 | -8/Garrison | Installed Relay Interface Framework 9952 | -8/Garrison | Garrison Relay disabled 10104 | -8/Garrison | Entered Factory 10104 | -7/Factory | Evolved 2 slots: Utility x1, Weapon x1 10106 | -7/Factory | FarCom data flow suspended 10400 | -7/Factory | Build established: Scavenger-Tank 10730 | -7/Factory | Discovered new exit (range 16) 10770 | -7/Factory | Build established: Tank 11680 | -7/Factory | Identified exit to Garrison 11779 | -7/Factory | Entered Garrison 11779 | -7/Garrison | Accompanied by 1 ally 11901 | -7/Garrison | Triggered checkpoint 12066 | -7/Garrison | Garrison Relay disabled 12220 | -7/Garrison | Triggered checkpoint 12230 | -7/Garrison | Triggered checkpoint 12745 | -7/Garrison | Discovered new exit (range 12) 12765 | -7/Garrison | Expanded RIF knowledge: Structural Interface 13165 | -7/Garrison | Entered Factory 13165 | -7/Factory | Accompanied by 1 ally 13496 | -7/Factory | Build established: Gunner 13565 | -7/Factory | First assault squad dispatched 13698 | -7/Factory | Garrison activated, responded to threat 13735 | -7/Factory | Lost 3 allies 13779 | -7/Factory | Identified exit to Garrison 13779 | -7/Factory | Entered Garrison 13779 | -7/Garrison | Accompanied by 4 allies 13965 | -7/Garrison | Garrison Relay disabled 14075 | -7/Garrison | Triggered checkpoint 14203 | -7/Garrison | Triggered checkpoint 14259 | -7/Garrison | Triggered checkpoint 14285 | -7/Garrison | Triggered checkpoint 14390 | -7/Garrison | Triggered checkpoint 14499 | -7/Garrison | Triggered checkpoint 14507 | -7/Garrison | Triggered checkpoint 14556 | -7/Garrison | Garrison Relay disabled 14567 | -7/Garrison | Lost 3 allies 14604 | -7/Garrison | Garrison Relay disabled 14855 | -7/Garrison | Build established: Bothacker-Tank 14858 | -7/Garrison | Discovered new exit (range 11) 15205 | -7/Garrison | Triggered checkpoint 15309 | -7/Garrison | Garrison Relay disabled 15367 | -7/Garrison | Discovered new exit (range 10) 15413 | -7/Garrison | Triggered checkpoint 15497 | -7/Garrison | Triggered checkpoint 15569 | -7/Garrison | Expanded RIF knowledge: Threat Obfuscation 15675 | -7/Garrison | Garrison Relay disabled 15729 | -7/Garrison | Discovered new exit (range 74) 15729 | -7/Garrison | Discovered new exit (range 55) 15729 | -7/Garrison | Discovered new exit (range 14) 15922 | -7/Garrison | Build established: Commander-Tank 15927 | -7/Garrison | Found embedded Infiltrators 16143 | -7/Garrison | Entered Factory 16143 | -6/Factory | Accompanied by 7 allies 16143 | -6/Factory | Evolved 2 slots: Propulsion x1, Utility x1 16362 | -6/Factory | Garrison activated, responded to threat 16814 | -6/Factory | Build established: Tank 16852 | -6/Factory | Sucked down chute 16852 | -6/Factory | Entered Waste 16877 | -6/Waste | Spotted C-40 Crusher 16889 | -6/Waste | Spotted C-40 Crusher 16907 | -6/Waste | Destroyed C-40 Crusher 16917 | -6/Waste | 2 allies followed down the chute 16922 | -6/Waste | Destroyed C-40 Crusher 16942 | -6/Waste | Spotted C-40 Crusher 16950 | -6/Waste | Allies destroyed C-40 Crusher 16985 | -6/Waste | Spotted C-40 Crusher 16996 | -6/Waste | Spotted C-40 Crusher 17006 | -6/Waste | Allies destroyed C-40 Crusher 17014 | -6/Waste | Spotted C-40 Crusher 17059 | -6/Waste | Allies destroyed C-40 Crusher 17076 | -6/Waste | Destroyed C-40 Crusher 17116 | -6/Waste | Discovered new exit (range 12) 17136 | -6/Waste | Entered Factory 17136 | -6/Factory | Accompanied by 2 allies 17493 | -6/Factory | Discovered new exit (range 51) 17508 | -6/Factory | Discovered new exit (range 56) 17828 | -6/Factory | Identified exit to Lower Caves 17828 | -6/Factory | Identified exit to Extension 17862 | -6/Factory | P-60 Hacker assimilated allied Chaingunner 5a 18266 | -6/Factory | Entered Extension 18266 | -6/Extension | Accompanied by 1 ally 18601 | -6/Extension | Rescued A7 18670 | -6/Extension | Remotely autohacked Sealed Heavy Doors 18671 | -6/Extension | Rescued a captive Derelict 18672 | -6/Extension | Rescued a captive Derelict 18730 | -6/Extension | Remotely autohacked Sealed Heavy Doors 18730 | -6/Extension | Rescued a captive Derelict 18731 | -6/Extension | Rescued a captive Derelict 18809 | -6/Extension | Rescued a captive Derelict 18809 | -6/Extension | Rescued a captive Derelict 19063 | -6/Extension | Build established: Commander-Tank 19354 | -6/Extension | Spotted B-75 Beast 19361 | -6/Extension | Destroyed B-75 Beast 19384 | -6/Extension | Spotted B-75 Beast 19387 | -6/Extension | Allies destroyed B-75 Beast 19630 | -6/Extension | Discovered new exit (range 16) 19635 | -6/Extension | Discovered new exit (range 14) 19668 | -6/Extension | Entered Cetus 19668 | -6/Cetus | Accompanied by 9 allies (A7) 19673 | -6/Cetus | Acquired a Cetus Manufacturing Module code from A7 19699 | -6/Cetus | Spotted Cetus Guard 19699 | -6/Cetus | Spotted Cetus Guard 19700 | -6/Cetus | Spotted Cetus Guard 19702 | -6/Cetus | Destroyed Cetus Guard 19706 | -6/Cetus | Spotted Cetus Guard 19714 | -6/Cetus | Allies destroyed Cetus Guard 19716 | -6/Cetus | Allies destroyed Cetus Guard 19716 | -6/Cetus | Allies destroyed Cetus Guard 19808 | -6/Cetus | Started Cetus Manufacturing Module 19827 | -6/Cetus | Remotely autohacked Sealed Heavy Doors 19831 | -6/Cetus | Escorted A7 to Cetus Mainframe 19833 | -6/Cetus | Manufactured an Enhanced Grunt 19858 | -6/Cetus | Manufactured an Enhanced Grunt 19883 | -6/Cetus | Manufactured an Enhanced Grunt 19908 | -6/Cetus | Manufactured an Enhanced Grunt 19931 | -6/Cetus | Discovered new exit (range 15) 19933 | -6/Cetus | Manufactured an Enhanced Grunt 19968 | -6/Cetus | Spotted Cetus Guard 19968 | -6/Cetus | Spotted Cetus Guard 19971 | -6/Cetus | Spotted Cetus Guard 19972 | -6/Cetus | Spotted Cetus Guard 19974 | -6/Cetus | Destroyed Cetus Guard 19974 | -6/Cetus | Destroyed Cetus Guard 19976 | -6/Cetus | Allies destroyed Cetus Guard 19977 | -6/Cetus | Allies destroyed Cetus Guard 19987 | -6/Cetus | Discovered new exit (range 15) 19995 | -6/Cetus | Met Revision 17 20226 | -6/Cetus | Entered Archives 20226 | -6/Archives | Accompanied by 13 allies (A7) 20231 | -6/Archives | Received a hacking code to weaken MAIN.C 20270 | -6/Archives | Unable to access archive contents 20280 | -6/Archives | Lost 4 allies 20282 | -6/Archives | Discovered new exit (range 15) 20310 | -6/Archives | Discovered new exit (range 14) 20445 | -6/Archives | Entered Hub_04(d) 20445 | -6/Hub_04(d) | Accompanied by 10 allies 20488 | -6/Hub_04(d) | Discovered new exit (range 9) 20669 | -6/Hub_04(d) | Network Hub disabled 20671 | -6/Hub_04(d) | Spotted Lightning 20672 | -6/Hub_04(d) | Spotted Lightning 20673 | -6/Hub_04(d) | Spotted Lightning 20689 | -6/Hub_04(d) | Allies destroyed Lightning 20689 | -6/Hub_04(d) | Allies destroyed Lightning 20692 | -6/Hub_04(d) | Allies destroyed Lightning 20712 | -6/Hub_04(d) | Lost 5 allies 20743 | -6/Hub_04(d) | Spotted Lightning 20748 | -6/Hub_04(d) | Spotted Lightning 20750 | -6/Hub_04(d) | Spotted Lightning 20777 | -6/Hub_04(d) | Lost 4 allies 20796 | -6/Hub_04(d) | System corruption reached 10% 20828 | -6/Hub_04(d) | Destroyed Lightning 20842 | -6/Hub_04(d) | Destroyed Lightning 20960 | -6/Hub_04(d) | Found Exp. Phase Shifter 21166 | -6/Hub_04(d) | Spotted Lightning 21169 | -6/Hub_04(d) | Spotted Lightning 21170 | -6/Hub_04(d) | Spotted Lightning 21182 | -6/Hub_04(d) | Garrison activated, responded to threat 21209 | -6/Hub_04(d) | Destroyed Lightning 21273 | -6/Hub_04(d) | Found Exp. EM Disruption Field 21279 | -6/Hub_04(d) | Found Exp. Targeting Computer 21307 | -6/Hub_04(d) | System corruption reached 30% 21495 | -6/Hub_04(d) | First assault squad dispatched 21496 | -6/Hub_04(d) | Lost 7 parts (1p2u4w) 21534 | -6/Hub_04(d) | Core integrity fell below 50% 21586 | -6/Hub_04(d) | Entered Factory 21586 | -5/Factory | Evolved 2 slots: Power x1, Utility x1 21616 | -5/Factory | Lost 7 parts (5n2u) 21824 | -5/Factory | Build established: Scavenger-Mutant 22449 | -5/Factory | P-70 Sage assimilated allied Slayer 6a 22525 | -5/Factory | Core integrity fell below 50% 22604 | -5/Factory | Lost 17 parts (2p5n3u7w) 22617 | -5/Factory | Core integrity fell below 20% 22656 | -5/Factory | Destroyed by S-27 Virus with Autogun Last Messages --------------- 22573_ Relay Coupler [Swarmer] destroyed. 22574_ System corrupted: Focal Shield rejected. 22597_ System corrupted: IFF burst signal emitted. 22598_ Jacked A-15 Conveyor... >>drop_inventory Dumping inventory... 5x Adv. Signal Interpreter 2x Imp. Component Analysis Suite 22613_ C-30 ARC bursts open, deploying its payload. 22613_ G-67 Veteran unfolds itself. 22613_ G-50 Soldier unfolds itself. 22615_ K-01 Serf collects debris. 22618_ W-25 Informer sends out distress signal. 22619_ B36UNP1JND7|TV=64LG5DTUS C#:C9H= 22636_ Acquired Nuclear Pulse Array. 22638_ Exp. Targeting Computer destroyed. 22639_ S-27 Virus destroyed. 22642_ System corrupted: Component data lost. 22643_ Acquired VTOL Module. 22647_ VTOL Module destroyed. Map ----- +----------------------------------------------------+ | ???????????????????????????????????? | | ???????????????????????????????????? | | ???????????????????????????????????? | | ???????????????????????????????????? | | ???????????????????????????????????? | | ???????????????????????????????????? | | ???????????????????????????????????? | | ???????????????????????????????????? | | ???????????????????????????????????? | | ???????????????????????????????????? | | ???????????????????????????????????? | | ???????????????????????????????????? | | ???????????????????????????????????? | | ???????????????????????????????????? | | ???????????????????????????????????? | | ???????????????????????????????????? | | ???????#####???????????????????????? | | ????? ? #??????????????????????? | | ???"" """ #?? ????????????????? | | ????" """ #?? #??????????????? | | ????" """ #?? #??????????????? | | ???? #?? #??????????????? | | ???"" """ #?? k+??????????????? | | ??""" """ [ +?? #??????????????? | | # """ """ #?? #??????????????? | | # @#?? #??????????????? | | ? """ """ #?? #??????????????? | | ???"" """ #??# #??????????????? | | ? """ """ #??# #??????????????? | | # #??# +??????????????? | | ??########/##??# #??????????????? | | ?????????#s##### ####???????????? | | ?????????+ s ????? | | ?????????#s#####/#######???????????? | | ?????????# s #???????????????? | | ?????????#! ! #???????????????? | | ?????????# *"" #???????????????? | | ?????????# %"" #???????????????? | | ?????????# "" """ #???????????????? | | ?????????# "T """ #???????????????? | | ?????????# "" """ #???????????????? | | ?????????# #???????????????? | | ?????????#####+#####???????????????? | | ?????????????# #???????????????????? | | ?????????????# #???????????????????? | | ?????????????# #########+########### | | ?????????????# | | ?????????????# | | ?????????????# | | ?????????????# | +----------------------------------------------------+ Best States ------------- Heat Dissipation 64 Energy Generation 32 Energy Capacity 350 Matter Stores 300 Matter Capacity 300 Sight Range 16 Robot Scan Range 15 Terrain Scan Range 16 Terrain Scan Density 10 Jamming Range 12 EM Shielding 2 Armor Coverage 1200 Resistance: KI 20 Resistance: EM 75 Evasion (%) 63 Targeting Accuracy 12 Target Analysis 8 Core Analysis 6 Recoil Reduction 4 Offensive Hacking 12 Relay Coupler Types 1 Relay Coupler Value 30 Item Schematics ----------------- Imp. Datajack | -8/Materials | Scanalyzed Transmission Jammer | -7/Factory | Scanalyzed Robot Schematics ------------------ None Fabricated ------------ Nothing Alien Tech Used ----------------- None Achievements -------------- None Challenges ------------ None Game ------ Seed CloakRelayComputer Manual? 0 Play Time 04:22:15 Cumulative 72.3 hours Start 2024.09.08 @ 15:45:12 End 2024.09.08 @ 22:29:49 Sessions 3 Manual Loads 0 Difficulty Rogue Special Mode None Game No. 40 Rogue 40 Adventurer 0 Explorer 0 Win Type - Total 0 Types 0/0/0/0/0/0/0/0/0 Lore% 40 Gallery% 55 Achievement% 45 Wizard Run 0 Options --------- Layout 0 ASCII 0 Keyboard 0 Movement Mouse Keybinds 0 Fullscreen 1 Font 24/Smallcaps Map View 183x50 Zoom Use 0% Tactical HUD 1 Map Filters NONE Filters NONE Steam 0 RUN: b3b9f2eb-f674-4868-bffe-fdfe74879bf8